[Event "Titled Tuesday Blitz February 07 Early 2023"]
[White "Goncalves, Davi Sulzbacher"]
[Black "Gharamian, Tigran"]
[WhiteFideId "2154510"]
[BlackFideId "13301527"]
[WhiteElo "2282"]
[BlackElo "2601"]
[Result "1-0"]
[Round "06"]
[TimeControl "180+2"]
[Date "2023.02.07"]
[WhiteClock "0:00:30"]
[BlackClock "0:00:01"]

1. Nf3 {[%clk 0:03:00]}  d5 {[%clk 0:02:56]} 2. d4 {[%clk 0:03:00]}  Nf6 {[%clk 0:02:55]} 3. c4 {[%clk 0:03:01]}  e6 {[%clk 0:02:55]} 4. Nc3 {[%clk 0:03:00]}  dxc4 {[%clk 0:02:55]} 5. e4 {[%clk 0:02:59]}  b5 {[%clk 0:02:55]} 6. e5 {[%clk 0:02:59]}  Nd5 {[%clk 0:02:54]} 7. Nxb5 {[%clk 0:02:57]}  Nb6 {[%clk 0:02:54]} 8. Nc3 {[%clk 0:02:51]}  Bb7 {[%clk 0:02:53]} 9. Bxc4 {[%clk 0:02:49]}  Nxc4 {[%clk 0:02:49]} 10. Qa4+ {[%clk 0:02:49]}  Qd7 {[%clk 0:02:46]} 11. Qxc4 {[%clk 0:02:49]}  Ba6 {[%clk 0:02:25]} 12. Qa4 {[%clk 0:02:38]}  Qxa4 {[%clk 0:02:18]} 13. Nxa4 {[%clk 0:02:39]}  Bb4+ {[%clk 0:02:16]} 14. Bd2 {[%clk 0:02:38]}  Nc6 {[%clk 0:02:17]} 15. O-O-O {[%clk 0:02:36]}  Rb8 {[%clk 0:02:09]} 16. a3 {[%clk 0:02:32]}  Bxd2+ {[%clk 0:01:47]} 17. Rxd2 {[%clk 0:02:31]}  Na5 {[%clk 0:01:47]} 18. Rc2 {[%clk 0:02:28]}  Nb3+ {[%clk 0:01:46]} 19. Kd1 {[%clk 0:02:28]}  Bb5 {[%clk 0:01:12]} 20. Nc5 {[%clk 0:02:24]}  O-O {[%clk 0:01:01]} 21. Nxb3 {[%clk 0:02:21]}  Ba4 {[%clk 0:01:01]} 22. Nc5 {[%clk 0:01:56]}  Bxc2+ {[%clk 0:00:51]} 23. Kxc2 {[%clk 0:01:56]}  Rfd8 {[%clk 0:00:46]} 24. Kc3 {[%clk 0:01:52]}  Rb6 {[%clk 0:00:46]} 25. b4 {[%clk 0:01:45]}  f6 {[%clk 0:00:44]} 26. Re1 {[%clk 0:01:37]}  Kf7 {[%clk 0:00:44]} 27. a4 {[%clk 0:01:34]}  h6 {[%clk 0:00:38]} 28. a5 {[%clk 0:01:33]}  Rb5 {[%clk 0:00:34]} 29. exf6 {[%clk 0:01:32]}  gxf6 {[%clk 0:00:33]} 30. Nxe6 {[%clk 0:01:29]}  Rdb8 {[%clk 0:00:33]} 31. Nd2 {[%clk 0:01:16]}  Re8 {[%clk 0:00:29]} 32. Kc4 {[%clk 0:01:15]}  Rf5 {[%clk 0:00:22]} 33. Ng7 {[%clk 0:01:09]}  Rxe1 {[%clk 0:00:15]} 34. Nxf5 {[%clk 0:01:09]}  Re2 {[%clk 0:00:15]} 35. Kd3 {[%clk 0:00:45]}  Rxf2 {[%clk 0:00:14]} 36. Nh4 {[%clk 0:00:42]}  Rf4 {[%clk 0:00:07]} 37. g3 {[%clk 0:00:42]}  Rg4 {[%clk 0:00:07]} 38. Nf5 {[%clk 0:00:39]}  Kg6 {[%clk 0:00:03]} 39. Ne3 {[%clk 0:00:39]}  Rg5 {[%clk 0:00:03]} 40. Nf3 {[%clk 0:00:35]}  Rh5 {[%clk 0:00:02]} 41. Nh4+ {[%clk 0:00:34]}  Kg5 {[%clk 0:00:01]} 42. Ke4 {[%clk 0:00:30]} 1-0


[Site "https://www.chess.com"]

[Event "Titled Tuesday Blitz February 07 Early 2023"]
[White "Magallanes, Rey Jomar"]
[Black "Matveeva, Olga"]
[WhiteFideId "5205948"]
[BlackFideId "24107018"]
[WhiteElo "2052"]
[BlackElo "2128"]
[Result "0-1"]
[Round "06"]
[TimeControl "180+2"]
[Date "2023.02.07"]
[WhiteClock "0:00:10"]
[BlackClock "0:00:19"]

1. e4 {[%clk 0:03:00]}  e6 {[%clk 0:03:00]} 2. d4 {[%clk 0:03:00]}  d5 {[%clk 0:03:00]} 3. e5 {[%clk 0:03:01]}  c5 {[%clk 0:03:00]} 4. c3 {[%clk 0:03:01]}  Nc6 {[%clk 0:03:00]} 5. Nf3 {[%clk 0:03:01]}  Qb6 {[%clk 0:03:00]} 6. a3 {[%clk 0:02:59]}  Nh6 {[%clk 0:02:59]} 7. b4 {[%clk 0:02:56]}  cxd4 {[%clk 0:03:00]} 8. cxd4 {[%clk 0:02:56]}  Nf5 {[%clk 0:03:00]} 9. Be3 {[%clk 0:02:56]}  f6 {[%clk 0:02:57]} 10. exf6 {[%clk 0:02:55]}  gxf6 {[%clk 0:02:56]} 11. Bd3 {[%clk 0:02:49]}  Nxe3 {[%clk 0:02:56]} 12. fxe3 {[%clk 0:02:49]}  Bh6 {[%clk 0:02:56]} 13. Qe2 {[%clk 0:02:43]}  Bd7 {[%clk 0:02:54]} 14. O-O {[%clk 0:02:34]}  O-O-O {[%clk 0:02:51]} 15. Nc3 {[%clk 0:02:32]}  Kb8 {[%clk 0:02:50]} 16. Rac1 {[%clk 0:02:18]}  Ne7 {[%clk 0:02:48]} 17. Nd2 {[%clk 0:02:08]}  e5 {[%clk 0:02:41]} 18. Nb3 {[%clk 0:02:04]}  exd4 {[%clk 0:02:11]} 19. Nxd4 {[%clk 0:02:00]}  Bg4 {[%clk 0:01:47]} 20. Qxg4 {[%clk 0:01:51]}  Bxe3+ {[%clk 0:01:47]} 21. Kh1 {[%clk 0:01:51]}  Qxd4 {[%clk 0:01:46]} 22. Qxd4 {[%clk 0:01:42]}  Bxd4 {[%clk 0:01:47]} 23. Ne2 {[%clk 0:01:15]}  Be5 {[%clk 0:01:46]} 24. Nf4 {[%clk 0:01:15]}  h6 {[%clk 0:01:36]} 25. Ne6 {[%clk 0:01:08]}  Rc8 {[%clk 0:01:35]} 26. Nc5 {[%clk 0:01:08]}  Ka8 {[%clk 0:01:11]} 27. g3 {[%clk 0:01:06]}  h5 {[%clk 0:01:04]} 28. Kg2 {[%clk 0:01:00]}  h4 {[%clk 0:01:03]} 29. Nd7 {[%clk 0:00:54]}  Rxc1 {[%clk 0:00:54]} 30. Rxc1 {[%clk 0:00:55]}  hxg3 {[%clk 0:00:54]} 31. hxg3 {[%clk 0:00:55]}  a6 {[%clk 0:00:50]} 32. Re1 {[%clk 0:00:47]}  Nc6 {[%clk 0:00:47]} 33. b5 {[%clk 0:00:45]}  axb5 {[%clk 0:00:47]} 34. Bxb5 {[%clk 0:00:46]}  Nd4 {[%clk 0:00:37]} 35. Nxe5 {[%clk 0:00:37]}  fxe5 {[%clk 0:00:36]} 36. a4 {[%clk 0:00:30]}  Nxb5 {[%clk 0:00:30]} 37. axb5 {[%clk 0:00:31]}  Re8 {[%clk 0:00:28]} 38. Kf3 {[%clk 0:00:28]}  Kb8 {[%clk 0:00:28]} 39. Rd1 {[%clk 0:00:28]}  d4 {[%clk 0:00:27]} 40. Ke4 {[%clk 0:00:28]}  Kc7 {[%clk 0:00:27]} 41. Rf1 {[%clk 0:00:24]}  Kb6 {[%clk 0:00:26]} 42. Rb1 {[%clk 0:00:22]}  Kc5 {[%clk 0:00:26]} 43. g4 {[%clk 0:00:22]}  Kd6 {[%clk 0:00:25]} 44. b6 {[%clk 0:00:21]}  Rf8 {[%clk 0:00:23]} 45. Rc1 {[%clk 0:00:16]}  Rf4+ {[%clk 0:00:22]} 46. Kd3 {[%clk 0:00:16]}  Rxg4 {[%clk 0:00:20]} 47. Rc7 {[%clk 0:00:16]}  Rg3+ {[%clk 0:00:20]} 48. Ke4 {[%clk 0:00:15]}  Re3+ {[%clk 0:00:19]} 49. Kf5 {[%clk 0:00:16]}  Rf3+ {[%clk 0:00:19]} 50. Ke4 {[%clk 0:00:15]}  Rf4+ {[%clk 0:00:19]} 51. Kd3 {[%clk 0:00:16]}  Kd5 {[%clk 0:00:19]} 52. Rxb7 {[%clk 0:00:14]}  e4+ {[%clk 0:00:18]} 53. Kd2 {[%clk 0:00:14]}  Rf2+ {[%clk 0:00:18]} 54. Ke1 {[%clk 0:00:15]}  Rb2 {[%clk 0:00:18]} 55. Rb8 {[%clk 0:00:14]}  Kc4 {[%clk 0:00:18]} 56. b7 {[%clk 0:00:10]}  Kd3 {[%clk 0:00:18]} 57. Kf1 {[%clk 0:00:10]}  e3 {[%clk 0:00:19]} 0-1


[Site "https://www.chess.com"]

[Event "Titled Tuesday Blitz February 07 Early 2023"]
[White "Manon-og, Ramon Jr."]
[Black "Kiseleva, Arina"]
[WhiteFideId "5200776"]
[BlackFideId "4164989"]
[WhiteElo "1999"]
[BlackElo "1962"]
[Result "1/2-1/2"]
[Round "06"]
[TimeControl "180+2"]
[Date "2023.02.07"]
[WhiteClock "0:00:52"]
[BlackClock "0:00:04"]

1. e4 {[%clk 0:03:00]}  c6 {[%clk 0:02:59]} 2. d4 {[%clk 0:03:00]}  d5 {[%clk 0:03:00]} 3. e5 {[%clk 0:03:00]}  Bf5 {[%clk 0:02:59]} 4. Nd2 {[%clk 0:03:01]}  e6 {[%clk 0:02:52]} 5. Nb3 {[%clk 0:03:01]}  Nd7 {[%clk 0:02:46]} 6. Nf3 {[%clk 0:03:01]}  h6 {[%clk 0:02:44]} 7. Be2 {[%clk 0:03:01]}  a6 {[%clk 0:02:40]} 8. O-O {[%clk 0:03:01]}  Ne7 {[%clk 0:02:39]} 9. c3 {[%clk 0:03:00]}  Qc7 {[%clk 0:02:37]} 10. Be3 {[%clk 0:03:00]}  c5 {[%clk 0:02:33]} 11. Nxc5 {[%clk 0:02:58]}  Nxc5 {[%clk 0:02:32]} 12. dxc5 {[%clk 0:02:58]}  Nc6 {[%clk 0:02:32]} 13. Bd4 {[%clk 0:02:55]}  Be4 {[%clk 0:02:29]} 14. Qa4 {[%clk 0:02:49]}  Be7 {[%clk 0:02:23]} 15. Nd2 {[%clk 0:02:48]}  Bf5 {[%clk 0:02:11]} 16. f4 {[%clk 0:02:48]}  O-O {[%clk 0:01:59]} 17. g4 {[%clk 0:02:45]}  Bh7 {[%clk 0:01:54]} 18. Nf3 {[%clk 0:02:42]}  f6 {[%clk 0:01:52]} 19. exf6 {[%clk 0:02:37]}  Bxf6 {[%clk 0:01:50]} 20. g5 {[%clk 0:02:32]}  Bxd4+ {[%clk 0:01:41]} 21. cxd4 {[%clk 0:02:18]}  Qxf4 {[%clk 0:01:30]} 22. gxh6 {[%clk 0:02:16]}  Qe3+ {[%clk 0:01:27]} 23. Rf2 {[%clk 0:02:14]}  Be4 {[%clk 0:01:24]} 24. h7+ {[%clk 0:01:42]}  Kh8 {[%clk 0:01:22]} 25. Qb3 {[%clk 0:01:41]}  Qxb3 {[%clk 0:00:47]} 26. axb3 {[%clk 0:01:41]}  Bxf3 {[%clk 0:00:44]} 27. Bxf3 {[%clk 0:01:42]}  Nxd4 {[%clk 0:00:41]} 28. Bg4 {[%clk 0:01:38]}  Rxf2 {[%clk 0:00:35]} 29. Kxf2 {[%clk 0:01:39]}  Rf8+ {[%clk 0:00:35]} 30. Kg3 {[%clk 0:01:35]}  Nxb3 {[%clk 0:00:33]} 31. Re1 {[%clk 0:01:32]}  Nxc5 {[%clk 0:00:32]} 32. b4 {[%clk 0:01:31]}  Ne4+ {[%clk 0:00:31]} 33. Kh4 {[%clk 0:01:31]}  Rf6 {[%clk 0:00:27]} 34. Kh3 {[%clk 0:01:23]}  Nf2+ {[%clk 0:00:26]} 35. Kg3 {[%clk 0:01:23]}  Nxg4 {[%clk 0:00:26]} 36. Kxg4 {[%clk 0:01:24]}  Kxh7 {[%clk 0:00:26]} 37. h4 {[%clk 0:01:21]}  Kg6 {[%clk 0:00:25]} 38. h5+ {[%clk 0:01:21]}  Kf7 {[%clk 0:00:25]} 39. Rc1 {[%clk 0:01:21]}  Kg8 {[%clk 0:00:15]} 40. Rc8+ {[%clk 0:01:20]}  Rf8 {[%clk 0:00:14]} 41. Rc7 {[%clk 0:01:19]}  Rf7 {[%clk 0:00:15]} 42. Rc8+ {[%clk 0:01:20]}  Kh7 {[%clk 0:00:14]} 43. Re8 {[%clk 0:01:19]}  Rf6 {[%clk 0:00:13]} 44. Re7 {[%clk 0:01:19]}  b6 {[%clk 0:00:12]} 45. Ra7 {[%clk 0:01:13]}  a5 {[%clk 0:00:11]} 46. bxa5 {[%clk 0:01:13]}  bxa5 {[%clk 0:00:11]} 47. Rxa5 {[%clk 0:01:14]}  d4 {[%clk 0:00:08]} 48. Ra7 {[%clk 0:01:11]}  e5 {[%clk 0:00:07]} 49. Re7 {[%clk 0:01:11]}  Rf4+ {[%clk 0:00:07]} 50. Kg5 {[%clk 0:01:11]}  Re4 {[%clk 0:00:06]} 51. h6 {[%clk 0:01:11]}  Re1 {[%clk 0:00:05]} 52. Rxg7+ {[%clk 0:01:11]}  Kh8 {[%clk 0:00:05]} 53. Rd7 {[%clk 0:01:08]}  e4 {[%clk 0:00:04]} 54. Rxd4 {[%clk 0:01:08]}  e3 {[%clk 0:00:03]} 55. Kg6 {[%clk 0:01:05]}  Rg1+ {[%clk 0:00:03]} 56. Kh5 {[%clk 0:00:58]}  e2 {[%clk 0:00:03]} 57. Rd8+ {[%clk 0:00:52]}  Kh7 {[%clk 0:00:03]} 58. Rd7+ {[%clk 0:00:52]}  Kh8 {[%clk 0:00:04]} 59. Rd8+ {[%clk 0:00:51]}  Kh7 {[%clk 0:00:04]} 60. Rd7+ {[%clk 0:00:52]}  Kh8 {[%clk 0:00:04]} 61. Rd8+ {[%clk 0:00:52]} 1/2-1/2


[Site "https://www.chess.com"]

[Event "Titled Tuesday Blitz February 07 Early 2023"]
[White "Da Silva Junior, Sediney Mari"]
[Black "Osiecki, Stanislaw"]
[WhiteFideId "2132079"]
[BlackFideId "1102990"]
[WhiteElo "2010"]
[BlackElo "2055"]
[Result "1-0"]
[Round "06"]
[TimeControl "180+2"]
[Date "2023.02.07"]
[WhiteClock "0:02:43"]
[BlackClock "0:02:05"]

1. e4 {[%clk 0:02:57]}  e6 {[%clk 0:02:58]} 2. Nf3 {[%clk 0:02:57]}  d5 {[%clk 0:02:57]} 3. e5 {[%clk 0:02:57]}  c5 {[%clk 0:02:57]} 4. b4 {[%clk 0:02:58]}  Nc6 {[%clk 0:02:52]} 5. bxc5 {[%clk 0:02:58]}  Bxc5 {[%clk 0:02:52]} 6. d4 {[%clk 0:02:59]}  Bb6 {[%clk 0:02:50]} 7. c3 {[%clk 0:02:58]}  Nge7 {[%clk 0:02:50]} 8. h4 {[%clk 0:02:58]}  h6 {[%clk 0:02:50]} 9. Bd3 {[%clk 0:02:58]}  O-O {[%clk 0:02:50]} 10. g4 {[%clk 0:02:58]}  Bd7 {[%clk 0:02:48]} 11. g5 {[%clk 0:02:58]}  h5 {[%clk 0:02:48]} 12. g6 {[%clk 0:02:58]}  Nxg6 {[%clk 0:02:47]} 13. Ng5 {[%clk 0:02:57]}  f6 {[%clk 0:02:43]} 14. Qxh5 {[%clk 0:02:54]}  fxg5 {[%clk 0:02:41]} 15. Bxg6 {[%clk 0:02:55]}  Rf5 {[%clk 0:02:06]} 16. Qh7+ {[%clk 0:02:42]}  Kf8 {[%clk 0:02:05]} 17. Qh8+ {[%clk 0:02:43]} 1-0


[Site "https://www.chess.com"]

[Event "Titled Tuesday Blitz February 07 Early 2023"]
[White "Fathy, Elameir"]
[Black "Baruch, Liam"]
[WhiteFideId "10600396"]
[BlackFideId "14322064"]
[WhiteElo "2300"]
[BlackElo "1718"]
[Result "1-0"]
[Round "06"]
[TimeControl "180+2"]
[Date "2023.02.07"]
[WhiteClock "0:01:18"]
[BlackClock "0:00:21"]

1. d4 {[%clk 0:02:59]}  d5 {[%clk 0:02:59]} 2. c4 {[%clk 0:02:58]}  e6 {[%clk 0:03:00]} 3. Nf3 {[%clk 0:02:57]}  Nf6 {[%clk 0:02:59]} 4. Nc3 {[%clk 0:02:58]}  Be7 {[%clk 0:03:00]} 5. Bf4 {[%clk 0:02:57]}  O-O {[%clk 0:03:00]} 6. e3 {[%clk 0:02:57]}  b6 {[%clk 0:02:59]} 7. Bd3 {[%clk 0:02:56]}  dxc4 {[%clk 0:02:59]} 8. Bxc4 {[%clk 0:02:56]}  Ba6 {[%clk 0:02:59]} 9. Bxa6 {[%clk 0:02:56]}  Nxa6 {[%clk 0:03:00]} 10. Qa4 {[%clk 0:02:56]}  Qc8 {[%clk 0:03:00]} 11. O-O {[%clk 0:02:55]}  Qb7 {[%clk 0:03:00]} 12. Rac1 {[%clk 0:02:49]}  c5 {[%clk 0:02:59]} 13. Rfd1 {[%clk 0:02:48]}  Rac8 {[%clk 0:02:58]} 14. a3 {[%clk 0:02:43]}  Rfd8 {[%clk 0:02:52]} 15. h3 {[%clk 0:02:21]}  h6 {[%clk 0:02:41]} 16. Nb5 {[%clk 0:02:14]}  Nd5 {[%clk 0:02:21]} 17. Bg3 {[%clk 0:02:13]}  cxd4 {[%clk 0:02:06]} 18. exd4 {[%clk 0:01:58]}  Rxc1 {[%clk 0:01:18]} 19. Rxc1 {[%clk 0:01:59]}  Rd7 {[%clk 0:01:09]} 20. Ne5 {[%clk 0:01:56]}  Rd8 {[%clk 0:01:02]} 21. Nc6 {[%clk 0:01:56]}  Ra8 {[%clk 0:01:00]} 22. Nxe7+ {[%clk 0:01:24]}  Nxe7 {[%clk 0:00:50]} 23. Nd6 {[%clk 0:01:24]}  Qd5 {[%clk 0:00:23]} 24. Qxa6 {[%clk 0:01:23]}  Qxd4 {[%clk 0:00:22]} 25. Qb7 {[%clk 0:01:18]}  Rd8 {[%clk 0:00:21]} 26. Qxe7 {[%clk 0:01:18]} 1-0


[Site "https://www.chess.com"]

[Event "Titled Tuesday Blitz February 07 Early 2023"]
[White "Alfaro, William"]
[Black "Hartikainen, Jarmo"]
[WhiteFideId "6100457"]
[BlackFideId "503134"]
[WhiteElo "2134"]
[BlackElo "2108"]
[Result "1-0"]
[Round "06"]
[TimeControl "180+2"]
[Date "2023.02.07"]
[WhiteClock "0:01:44"]
[BlackClock "0:00:05"]

1. e4 {[%clk 0:03:00]}  c5 {[%clk 0:02:59]} 2. Nf3 {[%clk 0:02:59]}  e6 {[%clk 0:02:59]} 3. d4 {[%clk 0:02:59]}  cxd4 {[%clk 0:02:59]} 4. Nxd4 {[%clk 0:03:00]}  Nc6 {[%clk 0:03:00]} 5. Nb5 {[%clk 0:03:00]}  d6 {[%clk 0:02:59]} 6. Bf4 {[%clk 0:03:00]}  e5 {[%clk 0:02:57]} 7. Be3 {[%clk 0:03:00]}  a6 {[%clk 0:02:57]} 8. N5a3 {[%clk 0:02:59]}  b5 {[%clk 0:02:54]} 9. c4 {[%clk 0:02:57]}  b4 {[%clk 0:02:53]} 10. Nc2 {[%clk 0:02:56]}  Nf6 {[%clk 0:02:52]} 11. Bg5 {[%clk 0:02:56]}  Be7 {[%clk 0:02:51]} 12. Bxf6 {[%clk 0:02:56]}  Bxf6 {[%clk 0:02:51]} 13. Ne3 {[%clk 0:02:55]}  Be6 {[%clk 0:02:50]} 14. Nd2 {[%clk 0:02:52]}  O-O {[%clk 0:02:44]} 15. Nf3 {[%clk 0:02:49]}  Nd4 {[%clk 0:02:22]} 16. Be2 {[%clk 0:02:46]}  Nxf3+ {[%clk 0:01:56]} 17. Bxf3 {[%clk 0:02:42]}  Rc8 {[%clk 0:01:55]} 18. b3 {[%clk 0:02:37]}  g6 {[%clk 0:01:49]} 19. Qd3 {[%clk 0:02:35]}  Bg7 {[%clk 0:01:46]} 20. Rd1 {[%clk 0:02:31]}  Rc6 {[%clk 0:01:41]} 21. h4 {[%clk 0:02:20]}  f5 {[%clk 0:01:26]} 22. h5 {[%clk 0:02:16]}  Qc8 {[%clk 0:01:10]} 23. hxg6 {[%clk 0:02:13]}  hxg6 {[%clk 0:01:10]} 24. exf5 {[%clk 0:02:13]}  gxf5 {[%clk 0:00:56]} 25. Bxc6 {[%clk 0:02:10]}  Qxc6 {[%clk 0:00:56]} 26. Qxd6 {[%clk 0:02:10]}  Rc8 {[%clk 0:00:34]} 27. Qxc6 {[%clk 0:02:04]}  Rxc6 {[%clk 0:00:34]} 28. Nd5 {[%clk 0:02:04]}  Bxd5 {[%clk 0:00:24]} 29. Rxd5 {[%clk 0:02:03]}  e4 {[%clk 0:00:17]} 30. Rxf5 {[%clk 0:02:01]}  Bc3+ {[%clk 0:00:17]} 31. Ke2 {[%clk 0:02:01]}  Rd6 {[%clk 0:00:17]} 32. Rd1 {[%clk 0:02:01]}  Rg6 {[%clk 0:00:14]} 33. g3 {[%clk 0:02:01]}  Kg7 {[%clk 0:00:09]} 34. Rd7+ {[%clk 0:02:00]}  Kh6 {[%clk 0:00:09]} 35. Ke3 {[%clk 0:01:55]}  Re6 {[%clk 0:00:08]} 36. g4 {[%clk 0:01:54]}  Kg6 {[%clk 0:00:07]} 37. Rfd5 {[%clk 0:01:47]}  Bf6 {[%clk 0:00:07]} 38. R7d6 {[%clk 0:01:46]}  Bg5+ {[%clk 0:00:07]} 39. Rxg5+ {[%clk 0:01:44]}  Kxg5 {[%clk 0:00:05]} 40. Rxe6 {[%clk 0:01:44]} 1-0


[Site "https://www.chess.com"]

[Event "Titled Tuesday Blitz February 07 Early 2023"]
[White "Zaichenko, Daria"]
[Black "Burke, John F"]
[WhiteFideId "4197453"]
[BlackFideId "2052970"]
[WhiteElo "2104"]
[BlackElo "2013"]
[Result "1-0"]
[Round "06"]
[TimeControl "180+2"]
[Date "2023.02.07"]
[WhiteClock "0:00:26"]
[BlackClock "0:00:20"]

1. e4 {[%clk 0:02:57]}  c5 {[%clk 0:03:00]} 2. Nf3 {[%clk 0:02:57]}  Nc6 {[%clk 0:03:00]} 3. d4 {[%clk 0:02:57]}  cxd4 {[%clk 0:03:00]} 4. Nxd4 {[%clk 0:02:58]}  e6 {[%clk 0:03:01]} 5. Nc3 {[%clk 0:02:55]}  Qc7 {[%clk 0:03:01]} 6. Be3 {[%clk 0:02:52]}  a6 {[%clk 0:02:58]} 7. f4 {[%clk 0:02:51]}  Bb4 {[%clk 0:02:49]} 8. Bd3 {[%clk 0:02:47]}  d6 {[%clk 0:02:46]} 9. O-O {[%clk 0:02:47]}  Nf6 {[%clk 0:02:46]} 10. Na4 {[%clk 0:02:38]}  b5 {[%clk 0:02:24]} 11. Nxc6 {[%clk 0:02:37]}  Qxc6 {[%clk 0:02:24]} 12. Nb6 {[%clk 0:02:36]}  Rb8 {[%clk 0:02:23]} 13. Nxc8 {[%clk 0:02:36]}  Rxc8 {[%clk 0:02:23]} 14. e5 {[%clk 0:02:33]}  Nd5 {[%clk 0:02:17]} 15. Bd4 {[%clk 0:02:22]}  Bc5 {[%clk 0:02:17]} 16. Be4 {[%clk 0:02:19]}  dxe5 {[%clk 0:01:54]} 17. fxe5 {[%clk 0:02:16]}  Bxd4+ {[%clk 0:01:51]} 18. Qxd4 {[%clk 0:02:16]}  Qb6 {[%clk 0:01:51]} 19. Rad1 {[%clk 0:02:08]}  Rc4 {[%clk 0:01:17]} 20. Qxb6 {[%clk 0:02:06]}  Nxb6 {[%clk 0:01:18]} 21. Bb7 {[%clk 0:01:57]}  a5 {[%clk 0:01:13]} 22. Ba6 {[%clk 0:01:55]}  Rc5 {[%clk 0:01:12]} 23. Rd6 {[%clk 0:01:47]}  Nc4 {[%clk 0:01:03]} 24. Rd4 {[%clk 0:01:38]}  Nxe5 {[%clk 0:01:00]} 25. c3 {[%clk 0:01:35]}  O-O {[%clk 0:00:58]} 26. b4 {[%clk 0:01:33]}  axb4 {[%clk 0:00:57]} 27. cxb4 {[%clk 0:01:33]}  Rc2 {[%clk 0:00:55]} 28. Bxb5 {[%clk 0:01:31]}  Rxa2 {[%clk 0:00:54]} 29. Re1 {[%clk 0:01:24]}  Ng6 {[%clk 0:00:47]} 30. Bd7 {[%clk 0:01:16]}  Rb2 {[%clk 0:00:45]} 31. b5 {[%clk 0:01:16]}  Rb8 {[%clk 0:00:45]} 32. Rc4 {[%clk 0:01:13]}  h6 {[%clk 0:00:43]} 33. Rec1 {[%clk 0:01:05]}  Kh7 {[%clk 0:00:41]} 34. Rc8 {[%clk 0:01:05]}  Rxc8 {[%clk 0:00:38]} 35. Rxc8 {[%clk 0:01:05]}  Ne5 {[%clk 0:00:37]} 36. Be8 {[%clk 0:01:04]}  Kg6 {[%clk 0:00:35]} 37. Rb8 {[%clk 0:01:02]}  Ng4 {[%clk 0:00:27]} 38. g3 {[%clk 0:00:56]}  Ne3 {[%clk 0:00:26]} 39. Rb7 {[%clk 0:00:47]}  Rg2+ {[%clk 0:00:23]} 40. Kh1 {[%clk 0:00:47]}  Rf2 {[%clk 0:00:24]} 41. h4 {[%clk 0:00:44]}  h5 {[%clk 0:00:20]} 42. Rxf7 {[%clk 0:00:26]} 1-0


[Site "https://www.chess.com"]

[Event "Titled Tuesday Blitz February 07 Early 2023"]
[White "Levine, David"]
[Black "Torres Dominguez, David"]
[WhiteFideId "2011611"]
[BlackFideId "2220857"]
[WhiteElo "2040"]
[BlackElo "1994"]
[Result "1-0"]
[Round "06"]
[TimeControl "180+2"]
[Date "2023.02.07"]
[WhiteClock "0:00:03"]
[BlackClock "0:00:03"]

1. d4 {[%clk 0:02:59]}  e5 {[%clk 0:01:58]} 2. dxe5 {[%clk 0:02:57]}  d6 {[%clk 0:01:59]} 3. exd6 {[%clk 0:02:56]}  Bxd6 {[%clk 0:02:00]} 4. Nf3 {[%clk 0:02:55]}  Bg4 {[%clk 0:02:00]} 5. Bg5 {[%clk 0:02:47]}  f6 {[%clk 0:01:59]} 6. Bh4 {[%clk 0:02:46]}  Nc6 {[%clk 0:01:59]} 7. Nbd2 {[%clk 0:02:46]}  Qe7 {[%clk 0:01:59]} 8. e3 {[%clk 0:02:44]}  O-O-O {[%clk 0:01:59]} 9. Bd3 {[%clk 0:02:41]}  Nh6 {[%clk 0:01:59]} 10. Bg3 {[%clk 0:02:39]}  Nb4 {[%clk 0:01:47]} 11. Qe2 {[%clk 0:02:36]}  Nf5 {[%clk 0:01:41]} 12. Bxd6 {[%clk 0:02:32]}  Rxd6 {[%clk 0:01:42]} 13. h3 {[%clk 0:02:24]}  Bxf3 {[%clk 0:01:37]} 14. Nxf3 {[%clk 0:02:23]}  g5 {[%clk 0:01:28]} 15. a3 {[%clk 0:02:14]}  Nxd3+ {[%clk 0:01:27]} 16. cxd3 {[%clk 0:02:14]}  Re8 {[%clk 0:01:23]} 17. O-O {[%clk 0:02:01]}  h5 {[%clk 0:01:23]} 18. Nh2 {[%clk 0:01:42]}  Kb8 {[%clk 0:01:21]} 19. Rfc1 {[%clk 0:01:36]}  Nd4 {[%clk 0:01:18]} 20. Qd1 {[%clk 0:01:33]}  Nc6 {[%clk 0:01:16]} 21. Rc4 {[%clk 0:01:29]}  g4 {[%clk 0:01:14]} 22. hxg4 {[%clk 0:01:13]}  Ne5 {[%clk 0:01:11]} 23. Re4 {[%clk 0:01:08]}  hxg4 {[%clk 0:01:03]} 24. Nxg4 {[%clk 0:01:03]}  Qd7 {[%clk 0:00:59]} 25. d4 {[%clk 0:00:50]}  Nxg4 {[%clk 0:00:55]} 26. Rxe8+ {[%clk 0:00:50]}  Qxe8 {[%clk 0:00:54]} 27. Qxg4 {[%clk 0:00:50]}  Rd7 {[%clk 0:00:49]} 28. Rc1 {[%clk 0:00:30]}  Rg7 {[%clk 0:00:46]} 29. Qf4 {[%clk 0:00:24]}  Qg8 {[%clk 0:00:44]} 30. g3 {[%clk 0:00:23]}  Qh8 {[%clk 0:00:43]} 31. Kg2 {[%clk 0:00:22]}  Rh7 {[%clk 0:00:42]} 32. Kf3 {[%clk 0:00:22]}  a6 {[%clk 0:00:39]} 33. Ke2 {[%clk 0:00:21]}  Re7 {[%clk 0:00:36]} 34. Rc5 {[%clk 0:00:19]}  Rd7 {[%clk 0:00:29]} 35. Rf5 {[%clk 0:00:17]}  Qg8 {[%clk 0:00:25]} 36. Rxf6 {[%clk 0:00:14]}  Qc4+ {[%clk 0:00:25]} 37. Kf3 {[%clk 0:00:13]}  Qd5+ {[%clk 0:00:23]} 38. Qe4 {[%clk 0:00:10]}  Qh5+ {[%clk 0:00:20]} 39. Kg2 {[%clk 0:00:10]}  Rh7 {[%clk 0:00:16]} 40. Qh4 {[%clk 0:00:10]}  Qd5+ {[%clk 0:00:14]} 41. Rf3 {[%clk 0:00:10]}  Rxh4 {[%clk 0:00:13]} 42. gxh4 {[%clk 0:00:10]}  a5 {[%clk 0:00:13]} 43. Kg3 {[%clk 0:00:06]}  a4 {[%clk 0:00:12]} 44. Rf4 {[%clk 0:00:06]}  b5 {[%clk 0:00:11]} 45. Rg4 {[%clk 0:00:06]}  Qd6+ {[%clk 0:00:09]} 46. Kg2 {[%clk 0:00:05]}  b4 {[%clk 0:00:09]} 47. axb4 {[%clk 0:00:04]}  Qxb4 {[%clk 0:00:10]} 48. h5 {[%clk 0:00:05]}  Qxb2 {[%clk 0:00:07]} 49. Rh4 {[%clk 0:00:04]}  Qb6 {[%clk 0:00:04]} 50. h6 {[%clk 0:00:04]}  Qg6+ {[%clk 0:00:04]} 51. Kf3 {[%clk 0:00:03]}  Qf5+ {[%clk 0:00:03]} 52. Ke2 {[%clk 0:00:03]} 1-0


[Site "https://www.chess.com"]